Cogmind - Beta 13 @@@ ROGUE MODE // 2024.07.06 @ 19:25:19 Player: StinksBinx Result: Destroyed by Y-45 Defender with Beam Rifle Performance ------------- Evolutions (2) 1000 Regions Visited (4) 800 Robots Destroyed (10) 50 Value Destroyed (319) 319 Prototype IDs (0) 0 Alien Tech Used (0) 0 Bonus (0) 0 TOTAL SCORE: 2169 Bonus ------- None Cogmind --------- Core Integrity 0/550 Matter 295/300 Energy 98/100 System Corruption 0% Temperature Cool (9) Movement Core (50) Location -8/Materials Parts ------- > --- POWER (2) -------- (None) > --- PROPULSION (2) --- (None) > --- UTILITY (5) ------ (None) > --- WEAPON (2) ------- (None) > --- INVENTORY (5) ---- Improved Heat Sink Cooling System Medium Matter Pod (43) Field Recycling Unit (0) Peak State ------------ > --- POWER ------------ Ion Engine Ion Engine > --- PROPULSION ------- Light Treads Light Treads > --- UTILITY ---------- Small Storage Unit Sensor Array ECM Suite Heavy Armor Plating > --- WEAPON ----------- Assault Rifle Mining Laser > --- INVENTORY -------- Light Deuterium Engine Cooling System Medium Matter Pod Sensor Array Field Recycling Unit Assault Rifle Grenade Launcher [Rating: 16] Favorites ----------- Power Ion Engine Engine Ion Engine Propulsion Light Treads Treads Light Treads Utility Small Storage Unit Device Sensor Array Storage Small Storage Unit Processor Signal Interpreter Protection Heavy Armor Plating Weapon Assault Rifle Energy Gun Particle Gun Ballistic Gun Assault Rifle Launcher Grenade Launcher Special Weapon Mining Laser Slashing Weapon Mining Claw Build | -11 -10 -10 -9 -8 ------- Run | Yrd Mat Min Mat Mat Slots Evolved 4 | . . . 2 2 Power 1 | . . . . 1 Propulsion . | . . . . . Utility 3 | . . . 2 1 Weapon . | . . . . . Parts Attached 24 | 5 7 . 3 9 Power 3 | 1 . . . 2 Engine 3 | 1 . . . 2 Core . | . . . . . Reactor . | . . . . . Propulsion 2 | 2 . . . . Treads 2 | 2 . . . . Leg . | . . . . . Wheel . | . . . . . Hover . | . . . . . Flight . | . . . . . Utility 11 | 1 3 . 3 4 Device 8 | . 2 . 3 3 Storage 1 | 1 . . . . Processor 1 | . 1 . . . Hackware . | . . . . . Protection 1 | . . . . 1 Artifact . | . . . . . Weapon 8 | 1 4 . . 3 Energy Gun 1 | . . . . 1 Energy Cannon . | . . . . . Ballistic Gun 3 | 1 1 . . 1 Ballistic Cannon . | . . . . . Launcher 2 | . 1 . . 1 Special Weapon 1 | . 1 . . . Impact Weapon . | . . . . . Slashing Weapon 1 | . 1 . . . Piercing Weapon . | . . . . . Special Melee Weapon . | . . . . . Unidentified Prototypes . | . . . . . Parts Lost 13 | . . . . 13 Power 2 | . . . . 2 Propulsion 2 | . . . . 2 Utility 5 | . . . . 5 Weapon 4 | . . . . 4 Highest Loss Streak 10 | . . . . 10 To Critical Strikes . | . . . . . Average Slot Usage (%) 85 | . 96 100 88 66 Engine 13 | . 14 14 11 13 Treads 22 | . 28 28 22 13 Device 14 | . 9 14 22 15 Storage 11 | . 14 14 11 9 Protection 1 | . . . . 4 Ballistic Gun 11 | . 14 14 11 7 Launcher 3 | . 10 . . . Special Weapon 5 | . . 14 11 2 Naked Turns 8 | . . . . 8 Heaviest Build 36 | 11 17 14 18 36 Greatest Support 40 | 40 40 40 40 40 Greatest Overweight (x) 2 | 1 . . . 2 Average Overweight (x) . | . . . . . Largest Inventory Capacity 8 | 8 8 8 8 8 Average Capacity 7 | 7 8 8 8 7 Most Carried 8 | 5 8 8 8 7 Average Carried 5 | 2 4 8 7 5 Final Capacity 8 | 8 8 8 8 5 Final Carried 8 | 1 8 8 8 4 Class Distribution -------------------- 100% | Mutant Dominant Class ---------------- Mutant | -10/Materials Mutant | -10/Mines Mutant | -9/Materials Mutant | -8/Materials Resources | -11 -10 -10 -9 -8 ----------- Run | Yrd Mat Min Mat Mat Matter Collected 566 | 224 64 . . 278 Remotely . | . . . . . Salvage Created 342 | . 64 . . 278 Parts 22 | . 3 . . 19 Haulers Intercepted . | . . . . . Recyclers Shooed . | . . . . . Parts Field Recycled . | . . . . . Retrieved Matter . | . . . . . Parts Self-Destructed . | . . . . . Prevented . | . . . . . Kills | -11 -10 -10 -9 -8 ------- Run | Yrd Mat Min Mat Mat Combat Hostiles Destroyed 10 | . 2 . . 8 Guns 8 | . . . . 8 AOE 2 | . 2 . . . Classes Destroyed 2 | . 1 . . 1 Swarmer 4 | . . . . 4 Grunt 6 | . 2 . . 4 Best Kill Streak 3 | . 2 . . 3 Combat Bots Only 3 | . 2 . . 3 Max Kills in Single Turn 2 | . 2 . . 1 Gunslinging . | . . . . . Exploded 2 | . 2 . . . Melee . | . . . . . Uniques/NPCs Destroyed . | . . . . . Combat | -11 -10 -10 -9 -8 -------- Run | Yrd Mat Min Mat Mat Hostile Shots Fired 178 | . 5 . . 173 Missed 40 | . 1 . . 39 Damage Taken 1959 | . 90 . . 1869 Core 595 | . 38 . . 557 Absorbed by Shields . | . . . . . Core Remaining (%) 94 | 100 . 84 100 . Volleys Fired 52 | . 2 . . 50 Largest 1 | . 1 . . 1 Hottest 100 | . 30 . . 100 Shots Fired 52 | . 2 . . 50 Gun 46 | . . . . 46 Cannon . | . . . . . Launcher 3 | . 2 . . 1 Special 3 | . . . . 3 Kinetic 41 | . . . . 41 Thermal 8 | . . . . 8 Explosive 3 | . 2 . . 1 Electromagnetic . | . . . . . Robot Hit Streak 19 | . 1 . . 19 Robot Miss Streak 4 | . 1 . . 4 Penetration Max . | . . . . . Secondary Targets . | . . . . . Shots Hit Robots 39 | . 1 . . 38 Core Hits 15 | . 2 . . 13 Critical Kills . | . . . . . Critical Parts Destroyed . | . . . . . Critical Strikes . | . . . . . Melee Attacks . | . . . . . Impact . | . . . . . Slashing . | . . . . . Piercing . | . . . . . Sneak Attacks . | . . . . . Combat Hostiles . | . . . . . Follow-up Attacks . | . . . . . Damage Inflicted 636 | . 84 . . 552 Guns 503 | . . . . 503 Cannons . | . . . . . Explosions 133 | . 84 . . 49 Melee . | . . . . . Ramming . | . . . . . Kinetic 462 | . . . . 462 Thermal 41 | . . . . 41 Explosive 133 | . 84 . . 49 Electromagnetic . | . . . . . Impact . | . . . . . Slashing . | . . . . . Piercing . | . . . . . Highest Corruption . | . . . . . Average Corruption . | . . . . . Corruption Purged . | . . . . . Corruption Blocked . | . . . . . Overload Shots . | . . . . . Overflow Damage . | . . . . . Projectiles . | . . . . . Explosions . | . . . . . Melee . | . . . . . Knockbacks . | . . . . . Impact . | . . . . . Kinetic . | . . . . . Secondary . | . . . . . Self-Inflicted Damage 70 | . 31 . . 39 Shots 3 | . 2 . . 1 Rammed . | . . . . . Targets Rammed . | . . . . . Kicked . | . . . . . Crushed . | . . . . . Highest Temperature 120 | . 5 . . 120 Average Temperature 24 | . 3 . . 25 Received Heat Transfer 942 | . 33 . . 909 Siege Activations . | . . . . . Robots Corrupted . | . . . . . Combat Hostiles . | . . . . . Parts Fried . | . . . . . Impact Corruptions . | . . . . . Robots Melted . | . . . . . Combat Hostiles . | . . . . . Parts Melted . | . . . . . Heat Transferred 111 | . . . . 111 Parts Sabotaged . | . . . . . Parts Stolen . | . . . . . Parts Stripped . | . . . . . Power Chain Reactions . | . . . . . Alert | -11 -10 -10 -9 -8 ------- Run | Yrd Mat Min Mat Mat Peak Influence 171 | . 63 . . 171 Initial . | . . . . . Average 41 | . 39 . . 93 Maximum Alert Level . | . . . . . Low Security (%) 100 | 100 100 100 100 100 Level 1 . | . . . . . Level 2 . | . . . . . Level 3 . | . . . . . Level 4 . | . . . . . Level 5 . | . . . . . High Security . | . . . . . Max Security . | . . . . . Squads Dispatched 2 | . . . . 2 Investigation 1 | . . . . 1 Extermination . | . . . . . Reinforcement 1 | . . . . 1 Assault . | . . . . . Garrison . | . . . . . Intercept . | . . . . . Searches Triggered . | . . . . . Construction Impeded . | . . . . . Haulers Reinforced . | . . . . . Active Scanning Responses . | . . . . . Cargo Convoy Interrupts . | . . . . . Stealth | -11 -10 -10 -9 -8 --------- Run | Yrd Mat Min Mat Mat Distress Signals 3 | . . . 2 1 Communications Jammed . | . . . . . Distress Signals . | . . . . . Times Spotted 20 | . 2 . 1 17 Peak Tracking Total 5 | . 2 . 1 5 Tactical Retreats 2 | . . . . 2 Traps | -11 -10 -10 -9 -8 ------- Run | Yrd Mat Min Mat Mat Traps Triggered 1 | . . . . 1 Indirectly . | . . . . . Trap Hack Attempts . | . . . . . Triggered . | . . . . . Disarmed . | . . . . . Reprogrammed . | . . . . . Reused . | . . . . . Traps Extracted . | . . . . . Installed . | . . . . . Triggered . | . . . . . Machines | -11 -10 -10 -9 -8 ---------- Run | Yrd Mat Min Mat Mat Machines Disabled 1 | . . . . 1 Max in Single Turn 1 | . . . . 1 Machines Repaired . | . . . . . Machines Dismantled . | . . . . . Machines Sabotaged . | . . . . . Overloaded Fab Kills . | . . . . . Hacking | -11 -10 -10 -9 -8 --------- Run | Yrd Mat Min Mat Mat Machines Accessed 2 | . 1 . 1 . Terminals 2 | . 1 . 1 . Fabricators . | . . . . . Repair Stations . | . . . . . Recycling Units . | . . . . . Scanalyzers . | . . . . . Garrison Access . | . . . . . Total Hacks 4 | . 2 . 2 . Successful 3 | . 2 . 1 . Failed 1 | . . . 1 . Catastrophic . | . . . . . Database Lockouts . | . . . . . Manual . | . . . . . Terminals 4 | . 2 . 2 . Fabricators . | . . . . . Repair Stations . | . . . . . Recycling Units . | . . . . . Scanalyzers . | . . . . . Garrison Access . | . . . . . Terminal Hacks 3 | . 2 . 1 . Record 2 | . 1 . 1 . Alert Level 1 | . 1 . . . Fabricator Hacks . | . . . . . Repair Station Hacks . | . . . . . Recycling Unit Hacks . | . . . . . Scanalyzer . | . . . . . Garrison Access Hacks . | . . . . . Unauthorized Hacks . | . . . . . Terminals . | . . . . . Fabricators . | . . . . . Repair Stations . | . . . . . Recycling Units . | . . . . . Scanalyzers . | . . . . . Garrison Access . | . . . . . Data Cores Recovered . | . . . . . Used . | . . . . . Hacking Detections 1 | . . . 1 . Full Trace Events . | . . . . . Feedback Events . | . . . . . Feedback Blocked . | . . . . . Robot Schematics Acquired . | . . . . . Robots Built . | . . . . . Authchips . | . . . . . Time . | . . . . . Total Robot Build Rating . | . . . . . Part Schematics Acquired . | . . . . . Parts Built . | . . . . . Authchips . | . . . . . Time . | . . . . . Total Part Build Rating . | . . . . . Parts Repaired . | . . . . . Time . | . . . . . Parts Recycled . | . . . . . Recycled Matter . | . . . . . Retrieved Matter . | . . . . . Retrieved Components . | . . . . . Parts Scanalyzed . | . . . . . Part Schematics Acquired . | . . . . . Parts Damaged . | . . . . . Bothacking | -11 -10 -10 -9 -8 ------------ Run | Yrd Mat Min Mat Mat Used RIF Installer . | . . . . . Robots Hacked . | . . . . . Non-combat . | . . . . . Combat . | . . . . . Robot Hacks Applied . | . . . . . Relay Couplers Released . | . . . . . Fabnet Peak Effective % . | . . . . . Robots Rewired . | . . . . . Allies Hacked . | . . . . . Hacks Repelled . | . . . . . Allies | -11 -10 -10 -9 -8 -------- Run | Yrd Mat Min Mat Mat Total Allies . | . . . . . Largest Group . | . . . . . Highest-Rated Group . | . . . . . Highest-Rated Ally . | . . . . . Total Orders . | . . . . . Ally Attacks . | . . . . . Total Damage . | . . . . . Kills . | . . . . . Allies Corrupted . | . . . . . Allies Melted . | . . . . . Intel | -11 -10 -10 -9 -8 ------- Run | Yrd Mat Min Mat Mat Robot Analysis Total . | . . . . . Derelict Logs Recovered 2 | . . 2 . . Drone Launches . | . . . . . Drone Recoveries . | . . . . . Exploration | -11 -10 -10 -9 -8 ------------- Run | Yrd Mat Min Mat Mat Turns Passed 1367 | 46 453 149 308 411 Spaces Moved 640 | 34 205 86 139 176 Core 93 | 28 . . . 65 Treads 547 | 6 205 86 139 111 Legs . | . . . . . Wheels . | . . . . . Hover . | . . . . . Flight . | . . . . . Fastest Speed 50 | 50 160 160 160 50 Average Speed 149 | 88 160 160 160 136 Slowest Speed 160 | 160 160 160 160 160 Overloaded Moves . | . . . . . Propulsion Burnouts . | . . . . . Robots Hopped . | . . . . . Cave-ins Triggered . | . . . . . Exploration Rate (%) 17 | 3 27 27 16 13 Regions Visited 4 Branch Regions 1 Pre-discovered Areas . | . . . . . Known Exits Taken . | . . . . . Unknown Exits Taken 4 | 1 1 1 1 . Scrap Searched . | . . . . . Spaces Dug . | . . . . . Terrain Destroyed 23 | . 12 . . 11 Melee . | . . . . . Projectile 1 | . . . . 1 AOE 22 | . 12 . . 10 Terrain Rammed . | . . . . . Walls Destroyed . | . . . . . Machines Disabled . | . . . . . Actions | -11 -10 -10 -9 -8 --------- Run | Yrd Mat Min Mat Mat Total 993 | 50 327 98 226 292 Wait 248 | 7 101 13 80 47 Move 636 | 33 204 85 138 176 Hop . | . . . . . Pick Up 23 | 5 11 . 2 5 Fast Attach 3 | 1 1 . 1 . Attach 15 | 4 2 . 2 7 Detach 2 | . . . 1 1 Swap 6 | . 4 . . 2 Drop 8 | . 2 . 2 4 Fire 52 | . 2 . . 50 Melee . | . . . . . Ram . | . . . . . Kick . | . . . . . Crush . | . . . . . Escape Stasis . | . . . . . Rewire . | . . . . . Trap . | . . . . . Miscellaneous . | . . . . . Route ------- -11/Scrapyard -10/Materials -10/Mines -9/Materials -8/Materials History --------- Turn | Location | Event 2 | -11/Scrapyard | Met Revision 17 4 | -11/Scrapyard | Discovered new exit (range 15) 47 | -11/Scrapyard | Entered Materials 317 | -10/Materials | Build established: Mutant 474 | -10/Materials | Discovered new exit (range 6) 500 | -10/Materials | Entered Mines 534 | -10/Mines | Learned Materials stockpile data 645 | -10/Mines | Discovered new exit (range 4) 649 | -10/Mines | Entered Materials 649 | -9/Materials | Evolved 2 slots: Utility x2 933 | -9/Materials | Discovered new exit (range 16) 957 | -9/Materials | Entered another Materials area 957 | -8/Materials | Evolved 2 slots: Power x1, Utility x1 1300 | -8/Materials | Core integrity fell below 50% 1354 | -8/Materials | Lost 10 parts (2p2n3u3w) 1358 | -8/Materials | Core integrity fell below 20% 1368 | -8/Materials | Destroyed by Y-45 Defender with Beam Rifle Last Messages --------------- Lgt. Deuterium Engine destroyed. Acquired 57 matter. Grenade Launcher destroyed. Recoil Stabilizer destroyed. U-05 Engineer lays Concrete. U-05 Engineer builds a Wall. Acquired Particle Gun. U-05 Engineer lays Concrete. U-05 Engineer builds a Wall. U-05 Engineer lays Concrete. U-05 Engineer builds a Wall. U-05 Engineer lays Concrete. U-05 Engineer builds a Wall. U-05 Engineer lays Concrete. U-05 Engineer builds a Door. ECM Suite destroyed. Critical hit (Burn: +37). U-05 Engineer lays Concrete. Particle Gun destroyed. Sml. Storage Unit destroyed. Map ----- +----------------------------------------------------+ | | | | | | | | | | | ?????????????????????????????????????????????????? | | ?????????????????????????????????????????????????? | | ?????????????????????????????????????????????????? | | ?????????????????????????????????????????????????? | | ?????????????????????????????????????????????????? | | ?????????????????????????????????????????????????? | | ???????????#######???????????????????????????????? | | ???????????# #???????????????????????????????? | | ???????????# #???????????????????????????????? | | ???????????# #??????????????? ??????????????? | | ##+######### #?????????????? ???????????????? | | # #?????????##### ????????????????? | | # ########?? ?????????????????? | | # # #?? ??????????????????? | | !!! + # #?? ???????????????????? | | !!! # #?""" ?? #???????????????????? | | # !!! # #?"Y ?? #???????????????????? | | # # #??"" ??? #???????????????????? | | # # #?? ?## ##??????????????????? | | + ##########+### #??????????????????? | | # gY @ #??????????????????? | | # "Y" g Y +??????????????????? | | # """ #??????????????????? | | #######+######+########## #??????????????????? | | #????? ???? ????????## ##??????????????????? | | #????? ????? ????????? #???????????????????? | | ????? ???????????????? #???????????????????? | | ????? ""???????????????? #???????????????????? | | ###?!! ""???????????????? r#???????????????????? | | #!! ""???????????????? #???????????????????? | | #!! ???????????????? #???????????????????? | | ???????????????? ???????????????????? | | #???????????????????????? ???????????????????? | | ##???????????????????????T ??????????????????? | | #??????????????????????? ???????????????????? | | #?????????????????????????????????????????????? | | ## ####??????????????????????????????????????????? | | = #??????????????????????????????????????????? | | T #??????????????????????????????????????????? | | #??????????????????????????????????????????? | | #??????????????????????????????????????????? | | #######??????????????????????????????????????????? | | ?????????????????????????????????????????????????? | | ?????????????????????????????????????????????????? | | ?????????????????????????????????????????????????? | +----------------------------------------------------+ Best States ------------- Heat Dissipation 50 Energy Generation 19 Energy Capacity 400 Matter Stores 300 Matter Capacity 300 Sight Range 16 Robot Scan Range 14 Terrain Scan Density 10 ECM Strength 1 Armor Coverage 600 Evasion (%) 50 Recoil Reduction 6 Item Schematics ----------------- None Robot Schematics ------------------ None Fabricated ------------ Nothing Alien Tech Used ----------------- None Achievements -------------- None Challenges ------------ None Game ------ Seed BombShieldCore Manual? 0 Play Time 00:21:55 Cumulative 1.5 hours Start 2024.07.06 @ 14:52:21 End 2024.07.06 @ 19:25:19 Sessions 3 Manual Loads 0 Difficulty Rogue Special Mode None Game No. 4 Rogue 3 Adventurer 1 Explorer 0 Win Type - Total 0 Types 0/0/0/0/0/0/0/0/0 Lore% 1 Gallery% 5 Achievement% 4 Wizard Run 0 Options --------- Layout 1 ASCII 0 Keyboard 0 Movement Mouse Keybinds 0 Fullscreen 2 Font 24/Smallcaps Map View 50x35 Zoom Use 0% Tactical HUD 0 Map Filters NONE Filters NONE Steam 1 RUN: 77c2698c-01e4-4bf1-a446-ff2dba8b60c8